bitfinex-derivatives/quotes_BTCF0:USTF0_20240825
["timestamp","ask_amount","ask_price","bid_price","bid_amount"]
[1724548951094,0.00527302,64376.0,64375.0,0.26693602]
[1724548951274,0.00527302,64376.0,64375.0,0.29120385]
[1724548951478,0.00527302,64376.0,64375.0,1.01280385]
[1724548952476,0.00527302,64376.0,64375.0,1.10280385]
[1724548953378,0.00527302,64376.0,64375.0,1.03850674]
[1724548953972,0.00527302,64376.0,64375.0,0.97663619]
[1724548954981,0.00527302,64376.0,64375.0,1.02517345]
[1724548955179,0.00527302,64376.0,64375.0,0.97663619]
[1724548955680,0.00527302,64376.0,64375.0,1.02517281]
[1724548955882,0.00527302,64376.0,64375.0,0.30357281]
[1724548956079,0.00527302,64376.0,64375.0,1.02517281]
[1724548956677,0.00527302,64376.0,64375.0,0.97663619]
[1724548957051,0.00527302,64376.0,64375.0,0.95236974]
[1724548957126,0.00527302,64376.0,64375.0,0.9766381]
[1724548958302,0.00527302,64376.0,64375.0,0.95236974]
[1724548959780,0.00527302,64376.0,64375.0,1.01424029]
[1724548959986,0.00527302,64376.0,64375.0,1.03850848]
[1724548960182,0.00527302,64376.0,64375.0,0.97663793]
[1724548960454,0.00527302,64376.0,64375.0,0.91354015]
[1724548960682,0.00527302,64376.0,64375.0,0.25503734]
[1724548961083,0.00527302,64376.0,64375.0,0.97663734]
[1724548961385,0.00527302,64376.0,64375.0,0.97663733]
[1724548963415,0.00527302,64376.0,64375.0,0.95236914]
[1724548963594,0.00527302,64376.0,64375.0,0.97663727]
[1724548964185,0.00527302,64376.0,64375.0,0.95236914]
[1724548964591,0.00527302,64376.0,64375.0,0.23076914]
[1724548964882,0.00427302,64376.0,64375.0,0.95236914]
[1724548966393,0.00427302,64376.0,64375.0,0.9766373]
[1724548966690,0.00427302,64376.0,64375.0,1.02517356]
[1724548966943,0.00427302,64376.0,64375.0,0.91354013]
[1724548967182,0.00427302,64376.0,64375.0,1.0009054]
[1724548967484,0.00427302,64376.0,64375.0,0.93780826]
[1724548967690,0.00427302,64376.0,64375.0,1.02517377]
[1724548967888,0.13800396,64376.0,64375.0,1.02517377]
[1724548968386,0.16798365,64376.0,64375.0,1.02517377]
[1724548968591,0.16798365,64376.0,64375.0,0.30357377]
[1724548969091,0.16798365,64376.0,64375.0,1.02517377]
[1724548969285,0.09815454,64376.0,64375.0,1.02517377]
[1724548969486,0.05941638,64376.0,64375.0,1.02517377]
[1724548970291,0.05941633,64376.0,64375.0,0.30357377]
[1724548970590,0.05941633,64376.0,64375.0,1.0251738]
[1724548970993,0.00427302,64376.0,64375.0,1.00754541]
[1724548971276,0.00427302,64376.0,64375.0,1.05608177]
[1724548971489,0.00427302,64376.0,64375.0,1.14344723]
[1724548973384,0.00427302,64376.0,64375.0,1.23640775]
[1724548973889,0.00427302,64376.0,64375.0,1.18787138]
[1724548974189,0.00427302,64376.0,64375.0,1.1636032]
[1724548974284,0.00427302,64376.0,64375.0,1.18787141]
[1724548974482,0.00427302,64376.0,64375.0,1.23640784]
[1724548975392,0.00427302,64376.0,64375.0,1.18787155]
[1724548975590,0.00427302,64376.0,64375.0,0.46627155]
[1724548975791,0.00427302,64376.0,64375.0,1.18787155]
[1724548976189,0.00427302,64376.0,64375.0,1.23640797]
[1724548977319,0.00427302,64376.0,64375.0,1.12477428]
[1724548977603,0.00427302,64376.0,64375.0,1.2364079]
[1724548979691,0.00427302,64376.0,64375.0,1.23640775]
[1724548980591,0.00427302,64376.0,64375.0,1.23640749]
[1724548980991,0.00427302,64376.0,64375.0,1.05344695]
[1724548981202,0.00427302,64376.0,64375.0,0.21357355]
[1724548981491,0.00427302,64376.0,64375.0,0.18824295]
[1724548981697,0.00427302,64376.0,64375.0,0.12621202]
[1724548982687,0.00427302,64376.0,64375.0,0.21621202]
[1724548982994,0.00427302,64376.0,64375.0,0.25505008]
[1724548983588,0.00427302,64376.0,64375.0,0.31708474]
[1724548984500,0.00427302,64376.0,64375.0,0.25505008]
[1724548984992,0.00427302,64376.0,64375.0,0.31708474]
[1724548986498,0.00427302,64376.0,64375.0,0.25397855]
[1724548986695,0.00427302,64376.0,64375.0,0.31708357]
[1724548986892,0.00427302,64376.0,64375.0,0.25504891]
[1724548987397,0.00427302,64376.0,64375.0,0.30358864]
[1724548989111,0.00427302,64376.0,64375.0,0.36946471]
[1724548989399,0.00427302,64376.0,64375.0,0.76143626]
[1724548989593,0.00427302,64376.0,64375.0,0.74202064]
[1724548989894,0.00427302,64376.0,64375.0,0.90394279]
[1724548990123,0.00427302,64376.0,64375.0,0.86023833]
[1724548990303,0.00427302,64376.0,64375.0,0.90392138]
[1724548990611,0.00427302,64376.0,64375.0,0.86509257]
[1724548990896,0.00427302,64376.0,64375.0,0.87969596]
[1724548990897,2e-08,64376.0,64375.0,0.87969596]
[1724548991104,2e-08,64376.0,64375.0,0.8796953]
[1724548991699,0.0471,64387.0,64386.0,0.155238]
[1724548992003,0.09213302,64393.0,64392.0,0.077612]
[1724548992195,0.09213302,64393.0,64392.0,0.61577818]
[1724548992396,0.09213302,64393.0,64392.0,0.7261684]
[1724548993294,0.09213302,64393.0,64392.0,0.59026544]
[1724548993570,0.04683302,64393.0,64392.0,0.66428073]
[1724548993702,0.00023302,64393.0,64392.0,0.64001874]
[1724548994403,0.00023302,64393.0,64392.0,0.61675647]
[1724548994602,0.00023302,64393.0,64392.0,0.61775647]
[1724548994797,0.00023302,64393.0,64392.0,0.62163568]
[1724548996403,0.00023302,64393.0,64392.0,0.98243568]
[1724548996907,0.00023302,64393.0,64392.0,0.95817312]
[1724548997311,0.00023302,64393.0,64392.0,0.93391085]
[1724548997622,0.04665038,64393.0,64392.0,0.94578465]
[1724548997809,0.04665038,64393.0,64392.0,0.8293533]
[1724548998112,0.00023302,64393.0,64392.0,0.9193533]
[1724548998902,0.00023302,64393.0,64392.0,0.9193933]
[1724549000149,0.00023302,64393.0,64392.0,0.91939506]
[1724549002109,0.09023302,64393.0,64392.0,0.46859506]
[1724549002310,0.09023302,64393.0,64392.0,0.08353121]
[1724549002932,0.09023302,64393.0,64392.0,0.00204]
[1724549003516,0.1677883,64393.0,64392.0,0.00204]
[1724549004118,0.09023302,64393.0,64392.0,0.00204]
[1724549004709,0.09023302,64393.0,64392.0,0.079652]
[1724549005112,1.00251827,64393.0,64390.0,0.00382465]
[1724549005316,0.56172,64392.0,64388.0,0.077616]
[1724549005617,0.09,64389.0,64388.0,0.077616]
[1724549005818,0.09,64389.0,64388.0,0.10188295]
[1724549006012,0.55592,64389.0,64388.0,0.10188295]
[1724549006321,0.09004,64389.0,64388.0,0.077616]
[1724549006511,0.09012,64389.0,64388.0,0.077616]
[1724549007115,0.55604,64389.0,64388.0,0.077616]
[1724549007515,0.09012,64389.0,64388.0,0.077616]
[1724549007910,0.09112,64389.0,64388.0,0.078616]
[1724549008519,0.09312,64389.0,64388.0,0.078616]
[1724549009034,0.55904,64389.0,64388.0,0.078616]
[1724549009614,0.636655,64389.0,64388.0,0.001]
[1724549009814,0.636655,64389.0,64385.0,0.07762]
[1724549010023,0.13641565,64386.0,64380.0,0.00023302]
[1724549010217,0.09,64381.0,64380.0,0.00023302]
[1724549010724,1.033585,64381.0,64380.0,0.00023302]
[1724549010928,0.09,64371.0,64370.0,0.077638]
[1724549011127,0.09,64374.0,64373.0,0.077634]
[1724549011937,0.09,64374.0,64373.0,0.077674]
[1724549012824,0.09,64374.0,64373.0,4e-05]
[1724549013025,0.167633,64374.0,64373.0,4e-05]
[1724549013224,0.171462,64374.0,64373.0,4e-05]
[1724549013419,0.077641,64368.0,64367.0,0.00023302]
[1724549013728,0.50032176,64368.0,64367.0,0.00023302]
[1724549013919,1.36640176,64368.0,64367.0,0.00023302]
[1724549014120,1.304521,64368.0,64367.0,0.00023302]
[1724549014319,1.36640468,64368.0,64367.0,0.00023302]
[1724549014625,1.304521,64368.0,64367.0,0.00023302]
[1724549014820,1.304521,64368.0,64367.0,0.00623302]
[1724549015216,1.304521,64368.0,64367.0,0.007]
[1724549015516,1.35088619,64368.0,64367.0,0.007]
[1724549015719,0.3608,64368.0,64367.0,0.007]
[1724549016027,0.4508,64368.0,64367.0,0.007]
[1724549017829,0.09,64368.0,64367.0,0.007]
[1724549018160,0.4508,64368.0,64367.0,0.007]
[1724549018627,0.3608,64368.0,64367.0,0.007]
[1724549019323,0.82688,64368.0,64367.0,0.007]
[1724549019817,0.077638,64370.0,64367.0,0.007]
[1724549020017,0.3608,64368.0,64367.0,0.007]
[1724549020623,0.4093,64368.0,64367.0,0.007]
[1724549020923,0.8093,64368.0,64367.0,0.007]
[1724549021124,1.27538,64368.0,64367.0,0.012]
[1724549021519,0.87542,64368.0,64367.0,0.007]
[1724549021729,0.87542,64368.0,64367.0,0.012]
[1724549022723,0.40934,64368.0,64367.0,0.012]
[1724549023426,0.40934,64368.0,64367.0,0.089642]
[1724549024913,0.36084,64368.0,64367.0,0.089642]
[1724549025825,4e-05,64368.0,64367.0,0.089642]
[1724549026018,0.36084,64368.0,64367.0,0.089642]
[1724549032638,0.40712289,64368.0,64367.0,0.089642]
[1724549033230,0.04632289,64368.0,64367.0,0.089642]
[1724549033431,0.12396289,64368.0,64367.0,0.089642]
[1724549033937,0.07768,64368.0,64367.0,0.089642]
[1724549034139,0.124067,64368.0,64367.0,0.012]
[1724549034336,0.07768,64368.0,64367.0,0.012]
[1724549034532,0.13956368,64368.0,64367.0,0.012]
[1724549034736,0.07768,64368.0,64367.0,0.012]
[1724549035540,0.13955191,64368.0,64367.0,0.012]
[1724549036132,0.50035191,64368.0,64367.0,0.012]
[1724549036335,0.43848,64368.0,64367.0,0.012]
[1724549038541,0.60603528,64368.0,64367.0,0.012]
[1724549039439,0.55365398,64368.0,64367.0,0.012]
[1724549039640,0.077648,64362.0,64361.0,0.00023302]
[1724549039900,0.528448,64362.0,64361.0,0.00023302]
[1724549040439,0.528488,64362.0,64361.0,0.00023302]
[1724549040946,0.529488,64362.0,64361.0,0.02623302]
[1724549041443,0.55466351,64362.0,64361.0,0.02623302]
[1724549041836,1.59148222,64362.0,64361.0,0.02623302]
[1724549042035,1.49843151,64362.0,64361.0,0.02623302]
[1724549042245,1.42078351,64362.0,64351.0,0.17309896]
[1724549042440,0.4508,64353.0,64351.0,0.126761]
[1724549043040,0.0777,64352.0,64351.0,0.126761]
[1724549043236,4e-05,64352.0,64351.0,0.126761]
[1724549043543,0.0620957,64352.0,64351.0,0.126761]
[1724549043943,0.0620957,64352.0,64351.0,0.137761]
[1724549044437,4e-05,64352.0,64351.0,0.137761]
[1724549044643,0.00204,64352.0,64351.0,0.137761]
[1724549045746,0.0640957,64352.0,64351.0,0.137761]
[1724549046540,0.00204,64352.0,64351.0,0.137761]
[1724549048038,0.0485487,64352.0,64351.0,0.18426262]
[1724549048246,0.0485492,64352.0,64351.0,0.18426262]
[1724549048436,0.0485492,64352.0,64351.0,0.137761]
[1724549048742,0.00204,64352.0,64351.0,0.137761]
[1724549049541,0.00204,64352.0,64351.0,0.18426262]
[1724549050638,0.00204,64352.0,64351.0,0.137761]
[1724549053751,0.00204,64352.0,64351.0,0.088661]
[1724549053952,0.09204,64352.0,64351.0,0.088661]
[1724549057044,0.09204,64352.0,64351.0,0.11294257]
[1724549057257,0.00204,64352.0,64351.0,0.11294257]
[1724549057452,0.00204,64352.0,64351.0,0.15944419]
[1724549057655,0.00204,64352.0,64351.0,0.11294092]
[1724549057853,0.00204,64352.0,64351.0,0.13516262]
[1724549058060,0.00204,64352.0,64351.0,0.13722074]
[1724549058260,0.00204,64352.0,64351.0,0.11294087]
[1724549058450,0.00204,64352.0,64351.0,0.088661]
[1724549058657,0.0640957,64352.0,64351.0,0.088661]
[1724549059647,0.00204,64352.0,64351.0,0.088661]
[1724549059849,0.00204,64352.0,64351.0,0.1129431]
[1724549060254,0.00204,64352.0,64351.0,0.088661]
[1724549060563,0.0640957,64352.0,64351.0,0.088661]
[1724549060856,0.00204,64352.0,64351.0,0.088661]
[1724549061256,0.00204,64352.0,64351.0,0.11294297]
[1724549061449,0.0640957,64352.0,64351.0,0.088661]
[1724549062352,0.00204,64352.0,64351.0,0.11294229]
[1724549062556,0.09204,64352.0,64351.0,0.1129426]
[1724549062962,0.1540957,64352.0,64351.0,0.1129426]
[1724549063155,0.1540957,64352.0,64351.0,0.088661]
[1724549063357,0.1540957,64352.0,64351.0,0.1129428]
[1724549064064,0.1540957,64352.0,64351.0,0.088661]
[1724549064460,0.09204,64352.0,64351.0,0.088661]
[1724549069575,0.16964166,64352.0,64351.0,0.088661]
[1724549069865,0.07964166,64352.0,64351.0,0.13516262]
[1724549070069,0.16964166,64352.0,64351.0,0.13516262]
[1724549070492,1.035899,64352.0,64351.0,0.05757839]
[1724549070557,1.06107848,64352.0,64351.0,0.011]
[1724549074562,0.66107848,64352.0,64351.0,0.011]
[1724549074762,0.077662,64350.0,64349.0,0.00019845]
[1724549075063,0.46364148,64350.0,64349.0,0.00019845]
[1724549075565,0.46368148,64350.0,64349.0,0.00019845]
[1724549075962,0.46468148,64350.0,64349.0,0.00619845]
[1724549076359,0.46468148,64350.0,64349.0,0.01119845]
[1724549076556,0.46568148,64350.0,64349.0,0.01119845]
[1724549077471,0.38801948,64350.0,64349.0,0.01119845]
[1724549077767,0.38801948,64350.0,64349.0,0.20314443]
[1724549077768,0.06411184,64350.0,64349.0,0.20314443]
[1724549077969,0.00204,64350.0,64349.0,0.22742668]
[1724549078668,0.00204,64350.0,64349.0,0.27572668]
[1724549078877,0.00204,64350.0,64349.0,0.18572668]
[1724549079461,0.00204,64350.0,64349.0,0.13716145]
[1724549079718,0.00204,64350.0,64349.0,0.1614432]
[1724549079857,0.06411184,64350.0,64349.0,0.18572495]
[1724549081574,0.06411184,64350.0,64349.0,0.13742495]
[1724549082073,0.00204,64350.0,64349.0,0.13742495]
[1724549083273,0.00204,64350.0,64349.0,0.17627581]
[1724549087671,0.00204,64350.0,64349.0,0.2228234]
[1724549088678,0.09204,64350.0,64349.0,0.2228234]
[1724549088938,0.09204,64350.0,64349.0,0.22282337]
[1724549089379,0.09204,64350.0,64349.0,0.17627578]
[1724549091178,0.00204,64350.0,64349.0,0.17627578]
[1724549091956,0.00204,64350.0,64349.0,0.08886145]
[1724549092174,0.00204,64350.0,64349.0,0.17627561]
[1724549092422,0.00204,64350.0,64349.0,0.1519939]
[1724549092675,0.00204,64350.0,64349.0,0.11314316]
[1724549092872,0.00204,64350.0,64349.0,0.19442179]
[1724549093079,0.0641293,64350.0,64349.0,0.15685006]
[1724549093471,0.0641293,64350.0,64349.0,0.1957008]
[1724549094067,0.1541293,64350.0,64349.0,0.1957008]
[1724549094267,0.09204,64350.0,64349.0,0.23833618]
[1724549095277,0.09204,64350.0,64349.0,0.25776147]
[1724549097181,0.09204,64350.0,64349.0,0.23833618]
[1724549097375,0.09204,64350.0,64349.0,0.25776126]
[1724549097581,0.11721733,64350.0,64349.0,0.17627561]
[1724549098285,0.11721733,64350.0,64349.0,0.17627467]
[1724549100580,0.09204,64350.0,64349.0,0.17627467]
[1724549101341,0.09204,64350.0,64349.0,0.08886145]
[1724549101540,0.09204,64350.0,64349.0,0.12771169]
[1724549101785,0.09204,64350.0,64349.0,0.53707449]
[1724549102988,0.09204,64350.0,64349.0,0.17627449]
[1724549105681,0.09204,64350.0,64349.0,0.23833506]
[1724549105984,0.09204,64350.0,64349.0,0.17627449]
[1724549106578,0.09204,64350.0,64349.0,0.23833506]
[1724549107383,0.09204,64350.0,64349.0,0.17627449]
[1724549108112,0.09204,64350.0,64349.0,0.17627533]
[1724549109692,0.09204,64350.0,64349.0,0.23839227]
[1724549110787,0.00204,64350.0,64349.0,0.23839227]
[1724549110984,0.09204,64350.0,64349.0,0.23839227]
[1724549111177,0.09204,64350.0,64349.0,0.23838941]
[1724549111388,0.09204,64350.0,64349.0,0.17627533]
[1724549111594,0.09204,64350.0,64349.0,0.11314311]
[1724549111785,0.09204,64350.0,64349.0,0.17627543]
[1724549111986,0.09204,64350.0,64349.0,0.08886145]
[1724549112188,0.09204,64350.0,64349.0,0.17627543]
[1724549115092,0.09204,64350.0,64349.0,0.08886145]
[1724549115390,0.09204,64350.0,64349.0,0.15199294]
[1724549115590,0.09204,64350.0,64349.0,0.17627428]
[1724549117897,0.09204,64350.0,64349.0,0.08886145]
[1724549118488,0.09204,64350.0,64349.0,0.44966145]
[1724549119993,0.09204,64350.0,64349.0,0.47394268]
[1724549120459,0.09204,64350.0,64349.0,0.53707388]
[1724549120621,0.09204,64350.0,64349.0,0.49822391]
[1724549120904,0.09204,64350.0,64349.0,0.53707388]
[1724549121697,0.09204,64350.0,64349.0,0.17627388]
[1724549121993,0.09204,64350.0,64349.0,0.53707388]
[1724549123195,0.09204,64350.0,64349.0,0.55649848]
[1724549123804,0.09204,64350.0,64349.0,0.55649692]
[1724549124305,0.09204,64350.0,64349.0,0.55649622]
[1724549124398,0.15417475,64350.0,64349.0,0.55649622]
[1724549127204,0.15417475,64350.0,64349.0,0.19569622]
[1724549127499,0.15417475,64350.0,64349.0,0.53707172]
[1724549127704,0.15417475,64350.0,64349.0,0.17627172]
[1724549127905,0.15417475,64350.0,64349.0,0.53707172]
[1724549133338,0.15417475,64350.0,64349.0,0.44966145]
[1724549133521,0.15417475,64350.0,64349.0,0.53707172]
[1724549135009,0.15417475,64350.0,64349.0,0.17627172]
[1724549135206,0.15417475,64350.0,64349.0,0.53707172]
[1724549136107,0.09204,64350.0,64349.0,0.53707172]
[1724549136811,0.09204,64350.0,64349.0,0.5370724]
[1724549137012,0.09204,64350.0,64349.0,0.58364654]
[1724549137212,0.11721806,64350.0,64349.0,0.15199158]
[1724549137420,0.11721806,64350.0,64349.0,0.1374257]
[1724549137712,0.11721806,64350.0,64349.0,0.11314227]
[1724549138312,0.11721992,64350.0,64349.0,0.11314227]
[1724549140230,0.11721992,64350.0,64349.0,0.11314529]
[1724549141009,0.02721992,64350.0,64349.0,0.11314529]
[1724549141212,0.00204,64350.0,64349.0,0.13742878]
[1724549141413,0.09204,64350.0,64349.0,0.22285484]
[1724549143804,0.09204,64350.0,64349.0,0.15971908]
[1724549143942,0.09204,64350.0,64349.0,0.198569]
[1724549144111,0.09204,64350.0,64349.0,0.22285108]
[1724549144309,0.09204,64350.0,64349.0,0.13742561]
[1724549144823,0.00204,64350.0,64349.0,0.13742561]
[1724549145125,0.09204,64350.0,64349.0,0.13742561]
[1724549146913,0.16965899,64350.0,64349.0,0.13742561]
[1724549147126,0.09204,64350.0,64349.0,0.13742561]
[1724549147519,0.16965899,64350.0,64349.0,0.11314353]
[1724549147714,0.09204,64350.0,64349.0,0.13742683]
[1724549148426,0.00204,64350.0,64349.0,0.13742683]
[1724549148615,0.09204,64350.0,64349.0,0.13742683]
[1724549149719,0.09204,64350.0,64349.0,0.13742614]
[1724549152327,1.42188083,64350.0,64345.0,0.04680716]
[1724549152628,1.42188083,64350.0,64331.0,0.0928722]
[1724549152629,0.183122,64347.0,64337.0,0.04657414]
[1724549152940,0.077681,64333.0,64332.0,0.04657414]
[1724549153200,0.077681,64333.0,64330.0,0.12425914]
[1724549153318,0.09,64331.0,64330.0,0.077685]
[1724549153517,0.04836122,64332.0,64331.0,0.077684]
[1724549153723,0.00016122,64332.0,64331.0,0.077684]
[1724549154430,0.04667269,64332.0,64331.0,0.077724]
[1724549154824,0.00016122,64332.0,64331.0,0.077724]
[1724549155025,0.04667269,64332.0,64331.0,0.077724]
[1724549155326,0.00016122,64332.0,64331.0,0.077724]
[1724549155754,0.00116122,64332.0,64331.0,0.077724]
[1724549157216,0.00216122,64332.0,64331.0,0.077724]
[1724549158025,0.00216122,64332.0,64331.0,0.08165734]
[1724549162331,0.09216122,64332.0,64331.0,0.08165734]
[1724549163426,0.00216122,64332.0,64331.0,0.08165734]
[1724549163632,0.09216122,64332.0,64331.0,0.08165734]
[1724549167224,0.00216122,64332.0,64331.0,0.17165734]
[1724549167833,0.00216122,64332.0,64331.0,0.21823148]
[1724549168532,0.00216122,64332.0,64331.0,0.57903148]
[1724549169131,0.00023302,64338.0,64337.0,0.077676]
[1724549169329,0.00023302,64338.0,64337.0,0.528476]
[1724549169639,0.00023302,64338.0,64337.0,0.57493092]
[1724549169836,0.00023302,64338.0,64337.0,0.57497092]
[1724549170235,0.00123302,64338.0,64337.0,0.57497092]
[1724549170432,0.00223302,64338.0,64337.0,0.57497092]
[1724549171234,0.00223302,64338.0,64337.0,0.528516]
[1724549171530,0.00223302,64338.0,64337.0,0.438516]
[1724549171531,0.09223302,64338.0,64337.0,0.438516]
[1724549171831,0.09223302,64338.0,64337.0,0.48497033]
[1724549175440,0.09223302,64338.0,64337.0,0.438516]
[1724549176435,0.15427102,64338.0,64337.0,4e-05]
[1724549176744,0.16990802,64338.0,64337.0,4e-05]
[1724549177239,0.15423572,64338.0,64337.0,0.077716]
[1724549177536,0.15423927,64338.0,64337.0,0.077716]
[1724549178135,0.09223302,64338.0,64337.0,0.438516]
[1724549180744,0.00223302,64338.0,64337.0,0.438516]
[1724549181047,0.04875742,64338.0,64337.0,0.438516]
[1724549181444,0.04875742,64338.0,64337.0,0.462801]
[1724549181639,0.00223302,64338.0,64337.0,0.438516]
[1724549182237,0.00223302,64338.0,64337.0,0.46280109]
[1724549182438,0.00223302,64338.0,64337.0,0.48708618]
[1724549183141,0.06423927,64338.0,64337.0,0.48504537]
[1724549183335,0.06423927,64338.0,64337.0,0.438516]
[1724549183336,0.00223302,64338.0,64337.0,0.438516]
[1724549183542,0.00223302,64338.0,64337.0,0.48708698]
[1724549183848,0.00223302,64338.0,64337.0,0.46280143]
[1724549183948,0.00223302,64338.0,64337.0,0.48708686]
[1724549187045,0.00223302,64338.0,64337.0,0.438516]
[1724549187296,0.00223302,64338.0,64337.0,0.487086]
[1724549187448,0.00223302,64338.0,64337.0,0.511371]
[1724549188947,0.00223302,64338.0,64337.0,0.487086]
[1724549189139,0.00223302,64338.0,64337.0,0.511371]
[1724549189340,0.00223302,64338.0,64337.0,0.57331089]
[1724549189540,0.00223302,64338.0,64337.0,0.57714268]
[1724549190853,0.00223302,64338.0,64337.0,0.52857268]
[1724549191071,0.00223302,64338.0,64337.0,0.57714268]
[1724549191647,0.00223302,64338.0,64337.0,0.51520279]
[1724549192248,0.00223302,64338.0,64337.0,0.49091779]
[1724549192547,0.00223302,64338.0,64337.0,0.51520288]
[1724549192749,0.00223302,64338.0,64337.0,0.66714277]
[1724549192949,0.04879329,64338.0,64337.0,0.66714277]
[1724549193344,0.04879329,64338.0,64337.0,0.60520288]
[1724549193345,0.00223302,64338.0,64337.0,0.60520288]
[1724549193671,0.00223302,64338.0,64337.0,0.55663279]
[1724549193839,0.00223302,64338.0,64337.0,0.60520255]
[1724549194460,0.00223302,64338.0,64337.0,0.24440255]
[1724549194644,0.00223302,64338.0,64337.0,0.60520255]
[1724549195552,0.00223302,64338.0,64337.0,0.24440255]
[1724549195752,0.00223302,64338.0,64337.0,0.60520255]
[1724549196549,0.00223302,64338.0,64337.0,0.58091755]
[1724549200160,0.00223302,64338.0,64337.0,0.55663267]
[1724549200350,0.00223302,64338.0,64337.0,0.49091755]
[1724549200634,0.00223302,64338.0,64337.0,0.46663267]
[1724549200746,0.00223302,64338.0,64337.0,0.49091755]
[1724549202055,0.00223302,64338.0,64337.0,0.13011755]
[1724549202356,0.09223302,64338.0,64337.0,0.48708576]
[1724549202550,0.09223302,64338.0,64337.0,0.18838439]
[1724549202754,0.09223302,64338.0,64337.0,0.12628576]
[1724549203471,0.09223302,64338.0,64337.0,0.077716]
[1724549203553,0.09223302,64338.0,64337.0,0.1728706]
[1724549203855,0.09223302,64338.0,64337.0,0.1728699]
[1724549204461,0.09223302,64338.0,64337.0,0.0951939]
[1724549204664,1.02217299,64338.0,64337.0,4e-05]
[1724549204865,1.11534196,64338.0,64337.0,4e-05]
[1724549205153,1.11532929,64338.0,64337.0,4e-05]
[1724549206150,1.02217299,64338.0,64337.0,4e-05]
[1724549206354,0.93217299,64338.0,64337.0,4e-05]
[1724549206553,0.55589299,64338.0,64337.0,4e-05]
[1724549207848,0.55589354,64338.0,64337.0,4e-05]
[1724549208058,0.38821854,64338.0,64337.0,0.077716]
[1724549208260,0.44063768,64338.0,64337.0,0.077716]
[1724549209956,0.07983768,64338.0,64337.0,0.077716]
[1724549210158,0.00223302,64338.0,64337.0,0.077716]
[1724549210560,0.06430211,64338.0,64337.0,0.10200276]
[1724549210753,0.06430211,64338.0,64337.0,0.14858294]
[1724549211066,0.06430211,64338.0,64337.0,0.10200276]
[1724549211259,0.06430211,64338.0,64337.0,0.14858294]
[1724549211462,0.06430211,64338.0,64337.0,0.10200276]
[1724549211658,0.06430282,64338.0,64337.0,0.10200276]
[1724549212660,0.00223302,64338.0,64337.0,0.10200276]
[1724549212947,0.00223302,64338.0,64337.0,0.077716]
[1724549219267,0.06430197,64338.0,64337.0,0.077716]
[1724549219479,0.06430197,64338.0,64337.0,0.10200287]
[1724549219673,0.06430197,64338.0,64337.0,0.077716]
[1724549219880,0.06430197,64338.0,64337.0,0.10200287]
[1724549223277,0.06430197,64338.0,64337.0,0.077716]
[1724549224072,0.06430197,64338.0,64337.0,0.10200268]
[1724549225071,0.00223302,64338.0,64337.0,0.077716]
[1724549226873,0.44063768,64338.0,64337.0,0.077716]
[1724549227375,0.00223302,64338.0,64337.0,0.077716]
[1724549229473,0.07983768,64338.0,64337.0,0.077716]
[1724549229878,0.00223302,64338.0,64337.0,0.077716]
[1724549230375,0.07983768,64338.0,64337.0,0.077716]
[1724549230970,0.16983768,64338.0,64337.0,0.077716]
[1724549231473,0.09223302,64338.0,64337.0,0.077716]
[1724549231773,0.16983768,64338.0,64337.0,0.077716]
[1724549233382,0.16983768,64338.0,64337.0,0.14858349]
[1724549234584,0.16983768,64338.0,64337.0,0.12429618]
[1724549234779,0.16983768,64338.0,64337.0,0.077716]
[1724549235283,0.02741709,64338.0,64337.0,0.077716]
[1724549235486,0.16989396,64338.0,64337.0,0.12429618]
[1724549235870,0.16989338,64338.0,64337.0,0.077716]
[1724549236179,0.11741669,64338.0,64337.0,0.077716]
[1724549238577,0.47821669,64338.0,64337.0,0.077716]
[1724549239478,0.02741669,64338.0,64337.0,0.077716]
[1724549239683,0.11741669,64338.0,64337.0,0.12429618]
[1724549240786,0.11741606,64338.0,64337.0,0.12429618]
[1724549241676,0.11741606,64338.0,64337.0,4e-05]
[1724549241871,0.53070802,64338.0,64337.0,4e-05]
[1724549242072,0.64904936,64338.0,64337.0,4e-05]
[1724549242280,0.55589306,64338.0,64337.0,4e-05]
[1724549243277,1.42217306,64338.0,64334.0,0.04658018]
[1724549243655,0.09,64335.0,64326.0,0.00096]
[1724549243783,0.077689,64326.0,64325.0,0.00023302]
[1724549243989,0.13288211,64326.0,64325.0,0.00023302]
[1724549244175,0.077695,64321.0,64316.0,0.04657871]
[1724549244381,0.55368004,64321.0,64313.0,0.04657871]
[1724549244677,0.55368004,64321.0,64310.0,0.06605163]
[1724549244678,0.55368004,64321.0,64310.0,0.003953]
[1724549245085,0.55372004,64321.0,64310.0,0.05053171]
[1724549245283,0.55372004,64321.0,64310.0,0.04657871]
[1724549245586,0.55372802,64321.0,64309.0,0.077709]
[1724549245883,0.59892802,64321.0,64309.0,0.077709]
[1724549246478,0.65220661,64321.0,64309.0,0.077709]
[1724549247587,0.65220661,64321.0,64305.0,0.3608]
[1724549247588,0.574735,64321.0,64310.0,0.077708]
[1724549247781,0.575735,64321.0,64320.0,0.00108]
[1724549247978,0.077702,64316.0,64310.0,0.077708]
[1724549248183,0.09,64311.0,64310.0,0.077708]
[1724549248387,0.09,64311.0,64305.0,0.3608]
[1724549248582,0.09,64306.0,64305.0,0.3608]
[1724549249780,0.091,64306.0,64305.0,0.438514]
[1724549251290,0.092,64306.0,64305.0,0.438514]
[1724549253185,0.09204,64306.0,64305.0,0.438514]
[1724549255086,0.00204,64306.0,64305.0,0.528514]
[1724549256382,0.00204,64306.0,64305.0,0.438514]
[1724549259088,0.00204,64306.0,64305.0,0.077714]
[1724549259989,0.04646191,64318.0,64305.0,0.077714]
[1724549259990,0.04636075,64326.0,64318.0,0.077699]
[1724549260190,0.438487,64328.0,64318.0,0.077699]
[1724549260191,0.09023321,64319.0,64318.0,0.077699]
[1724549261286,0.09123321,64319.0,64318.0,0.077699]
[1724549263196,0.09223321,64319.0,64318.0,0.438499]
[1724549264794,0.09223321,64319.0,64318.0,0.077699]
[1724549265001,0.09223321,64319.0,64311.0,0.3608]
[1724549265291,0.09223321,64319.0,64314.0,0.077703]
[1724549265292,0.00223321,64319.0,64314.0,0.077703]
[1724549265494,0.0498,64318.0,64314.0,0.077703]
[1724549265709,0.09,64315.0,64314.0,0.077703]
[1724549266427,0.2598,64318.0,64314.0,0.077703]
[1724549266604,0.337499,64318.0,64314.0,0.077703]
[1724549266787,0.38385975,64318.0,64314.0,0.077703]
[1724549266992,0.001,64315.0,64314.0,0.077703]
[1724549267499,0.3608,64315.0,64314.0,0.077703]